fUSD/lending_fUSD_20260227
["ID","MTS","AMOUNT","RATE_DAILY","PERIOD"]
[406787525,1772193048414,-174.05037079,0.00038909,30]
[406787526,1772193048427,-200.0,0.00038909,30]
[406787527,1772193048436,-233.51889341,0.00038909,30]
[406787528,1772193048446,-500.0,0.00038909,30]
[406787529,1772193048455,-156.587,0.00038909,30]
[406787530,1772193048465,-200.0,0.00038909,30]
[406787531,1772193048475,-242.15909246,0.00038909,30]
[406787532,1772193048484,-500.0,0.00038909,30]
[406787533,1772193048495,-302.8486719,0.00038909,30]
[406787534,1772193048506,-200.0,0.00038909,30]
[406787535,1772193048517,-500.0,0.00038909,30]
[406787536,1772193048526,-251.11897888,0.00038909,30]
[406787537,1772193048535,-500.0,0.00038909,30]
[406787538,1772193048544,-500.0,0.00038909,30]
[406787539,1772193048554,-500.0,0.00038909,30]
[406787540,1772193048563,-500.0,0.00038909,30]
[406787541,1772193048573,-500.0,0.00038909,30]
[406787542,1772193048582,-500.0,0.00038909,30]
[406787543,1772193048592,-500.0,0.00038909,30]
[406787544,1772193048601,-200.0,0.00038909,30]
[406787545,1772193048610,-260.4103811,0.00038909,30]
[406787546,1772193048621,-500.0,0.00038909,30]
[406787547,1772193048630,-500.0,0.00038909,30]
[406787548,1772193048640,-202.72622012,0.00038909,30]
[406787549,1772193048649,-270.0455652,0.00038909,30]
[406787550,1772193048658,-500.0,0.00038909,30]
[406787551,1772193048668,-500.0,0.00038909,30]
[406787552,1772193048678,-500.0,0.00038909,30]
[406787553,1772193048687,-500.0,0.00038909,30]
[406787554,1772193048696,-280.03725112,0.00038909,30]
[406787555,1772193048709,-500.0,0.00038909,30]
[406787556,1772193048719,-500.0,0.00038909,30]
[406787557,1772193048729,-290.39862941,0.00038909,30]
[406787558,1772193048741,-500.0,0.00038909,30]
[406787559,1772193048752,-301.1433787,0.00038909,30]
[406787560,1772193048762,-500.0,0.00038909,30]
[406787561,1772193048771,-500.0,0.00038909,30]
[406787562,1772193048780,-500.0,0.00038909,30]
[406787563,1772193048790,-500.0,0.00038909,30]
[406787564,1772193048799,-200.0,0.00038909,30]
[406787565,1772193048808,-500.0,0.00038909,30]
[406787566,1772193048818,-200.0,0.00038909,30]
[406787567,1772193048827,-500.0,0.00038909,30]
[406787568,1772193048836,-200.0,0.00038909,30]
[406787569,1772193048845,-500.0,0.00038909,30]
[406787570,1772193048854,-200.0,0.00038909,30]
[406787571,1772193048863,-500.0,0.00038909,30]
[406787572,1772193048873,-200.0,0.00038909,30]
[406787573,1772193048883,-500.0,0.00038909,30]
[406787574,1772193048892,-200.0,0.00038909,30]
[406787575,1772193048901,-500.0,0.00038909,30]
[406787576,1772193048911,-200.0,0.00038909,30]
[406787577,1772193048920,-500.0,0.00038909,30]
[406787578,1772193048929,-500.0,0.00038909,30]
[406787579,1772193048938,-200.0,0.00038909,30]
[406787580,1772193048947,-500.0,0.00038909,30]
[406787581,1772193048956,-500.0,0.00038909,30]
[406787582,1772193048965,-250.0,0.00038909,30]
[406787583,1772193048974,-250.0,0.00038909,30]
[406787584,1772193048983,-250.0,0.00038909,30]
[406787585,1772193048992,-250.0,0.00038909,30]
[406787586,1772193049001,-250.0,0.00038909,30]
[406787587,1772193049010,-250.0,0.00038909,30]
[406787588,1772193049019,-250.0,0.00038909,30]
[406787589,1772193049028,-250.0,0.00038909,30]
[406787590,1772193049037,-731.382172,0.00038909,120]
[406787591,1772193049045,-731.382172,0.00038909,120]
[406787592,1772193049055,-731.382172,0.00038909,120]
[406787593,1772193049065,-731.382172,0.00038909,120]
[406787594,1772193049074,-151.0,0.00038909,120]
[406787595,1772193049083,-151.0,0.00038909,120]
[406787596,1772193049092,-200.0,0.0003891,117]
[406787597,1772193049100,-350.0,0.00038952,10]
[406787598,1772193049110,-1000.0,0.00038969,7]
[406787599,1772193049119,-1000.0,0.0003897,2]
[406787600,1772193049129,-1000.0,0.00038983,7]
[406787601,1772193049138,-150.0,0.00038999,2]
[406787602,1772193049147,-150.0,0.00038999,2]
[406787603,1772193049157,-150.0,0.00038999,2]
[406787604,1772193049166,-150.0,0.00038999,2]
[406787605,1772193049175,-290.59963285,0.00038999,2]
[406787606,1772193049184,-26657.57892796,0.00039,2]
[406787607,1772193049194,-396.00419288,0.00039,14]
[406787608,1772193049203,-36555.46185015,0.00039,10]
[406787609,1772193049212,-294.0915689,0.00039,6]
[406787610,1772193049221,-2000.0,0.00039,2]
[406787611,1772193049231,-1000.0,0.00039,2]
[406787612,1772193049240,-250.0,0.00039,7]
[406787613,1772193049249,-1000.0,0.00039,120]
[406787614,1772193049259,-1000.0,0.00039,25]
[406787615,1772193049268,-218.2175256,0.00039,2]
[406787616,1772193049277,-310.82013366,0.00039,2]
[406787617,1772193049286,-1000.0,0.00039,120]
[406787618,1772193049295,-1000.0,0.00039,120]
[406787619,1772193049305,-1000.0,0.00039,120]
[406787620,1772193049314,-1000.0,0.00039,120]
[406787621,1772193049323,-160.0,0.00039,30]
[406787622,1772193049332,-1000.0,0.00039,2]
[406787623,1772193049342,-443.46717804,0.00039,2]
[406787624,1772193049351,-200.0,0.00039,2]
[406787625,1772193049361,-1511.0,0.00039,7]
[406787626,1772193049369,-1511.0,0.00039,7]
[406787627,1772193049379,-1511.0,0.00039,7]
[406787628,1772193049388,-1511.0,0.00039,7]
[406787629,1772193049399,-151.0,0.00039,7]
[406787630,1772193049408,-1511.0,0.00039,7]
[406787631,1772193049422,-151.0,0.00039,7]
[406787632,1772193049433,-1511.0,0.00039,7]
[406787633,1772193049442,-151.0,0.00039,7]
[406787634,1772193049451,-1511.0,0.00039,7]
[406787635,1772193049463,-151.0,0.00039,7]
[406787636,1772193049473,-1511.0,0.00039,7]
[406787637,1772193049482,-151.0,0.00039,7]
[406787638,1772193049494,-1511.0,0.00039,7]
[406787639,1772193049505,-151.0,0.00039,7]
[406787640,1772193049514,-1511.0,0.00039,7]
[406787641,1772193049523,-151.0,0.00039,7]
[406787642,1772193049532,-1511.0,0.00039,7]
[406787643,1772193049541,-151.0,0.00039,7]
[406787644,1772193049550,-887.42293333,0.00039,7]
[406787645,1772193049559,-250.72418667,0.00039,7]
[406787646,1772193049569,-151.0,0.00039,7]
[406787647,1772193049578,-151.0,0.00039,7]
[406787648,1772193049588,-151.0,0.00039,7]
[406787649,1772193049597,-151.0,0.00039,7]
[406787650,1772193049606,-151.0,0.00039,7]
[406787651,1772193049617,-151.0,0.00039,7]
[406787652,1772193049626,-151.0,0.00039,7]
[406787653,1772193049638,-151.0,0.00039,7]
[406787654,1772193049647,-151.0,0.00039,7]
[406787655,1772193049657,-151.0,0.00039,7]
[406787656,1772193049784,-151.0,0.00039,7]
[406787657,1772193049794,-244.03346909,0.00039,7]
[406787658,1772193049804,-160.66556425,0.00039,7]
[406787659,1772193049813,-151.0,0.00039,120]
[406787660,1772193049824,-200.0,0.00039,120]
[406787661,1772193049837,-200.0,0.00039,120]
[406787662,1772193049846,-200.0,0.00039,2]
[406787663,1772193049855,-151.0,0.00039,120]
[406787664,1772193049865,-1511.0,0.00039,7]
[406787665,1772193049877,-151.0,0.00039,7]
[406787666,1772193049887,-1511.0,0.00039,7]
[406787667,1772193049897,-151.0,0.00039,7]
[406787668,1772193049907,-151.0,0.00039,7]
[406787669,1772193049916,-1511.0,0.00039,7]
[406787670,1772193049926,-1511.0,0.00039,7]
[406787671,1772193049936,-151.0,0.00039,7]
[406787672,1772193049946,-1511.0,0.00039,7]
[406787673,1772193049955,-219.601057,0.00039,120]
[406787674,1772193049965,-151.0,0.00039,7]
[406787675,1772193049974,-1511.0,0.00039,7]
[406787676,1772193049984,-151.0,0.00039,7]
[406787677,1772193049993,-1511.0,0.00039,7]
[406787678,1772193050003,-151.0,0.00039,7]
[406787679,1772193050012,-1511.0,0.00039,7]
[406787680,1772193050022,-1511.0,0.00039,7]
[406787681,1772193050031,-1511.0,0.00039,7]
[406787682,1772193050041,-1511.0,0.00039,7]
[406787683,1772193050050,-1511.0,0.00039,7]
[406787684,1772193050059,-151.0,0.00039,120]
[406787685,1772193050070,-200.0,0.00039,10]
[406787686,1772193050080,-151.0,0.00039,120]
[406787687,1772193050089,-278.322927,0.00039,120]
[406787688,1772193050099,-151.0,0.00039,120]
[406787689,1772193050109,-151.0,0.00039,120]
[406787690,1772193050120,-151.0,0.00039,120]
[406787691,1772193050129,-280.271723,0.00039,120]
[406787692,1772193050139,-1304.14343,0.00039,108]
[406787693,1772193050149,-1304.14343,0.00039,108]
[406787694,1772193050159,-361.292831,0.00039,120]
[406787695,1772193050169,-322.815662,0.00039,7]
[406787696,1772193050179,-361.292831,0.00039,120]
[406787697,1772193050188,-322.815662,0.00039,7]
[406787698,1772193050199,-361.292831,0.00039,120]
[406787699,1772193050208,-322.815662,0.00039,7]
[406787700,1772193050218,-361.292831,0.00039,120]
[406787701,1772193050228,-322.815662,0.00039,7]
[406787702,1772193050238,-612.14922787,0.00039,14]
[406787703,1772193050247,-306.2,0.00039019,30]
[406787704,1772193050258,-424.80694,0.00039088,30]
[406787705,1772193050269,-167.0,0.00039092,120]
[406787706,1772193050279,-221.367673,0.000391,10]
[406787707,1772193050288,-2000.0,0.000391,7]
[406787708,1772193050298,-167.0,0.00039138,120]
[406787709,1772193050308,-263.0,0.00039178,120]
[406787710,1772193050317,-1040.2,0.00039181,30]
[406787711,1772193050327,-424.80694,0.00039288,30]
[406787712,1772193050336,-181780.83729629,0.00039328,25]
[406787713,1772193050346,-176.639564,0.00039328,120]
[406787714,1772193050355,-176.639564,0.00039328,120]
[406787715,1772193050365,-176.639564,0.00039328,120]
[406787716,1772193050374,-800.0,0.00039329,13]
[406787717,1772193050384,-800.0,0.00039329,13]
[406787718,1772193050393,-800.0,0.00039329,13]
[406787719,1772193050402,-800.0,0.00039329,13]
[406787720,1772193050412,-800.0,0.00039329,13]
[406787721,1772193050425,-800.0,0.00039329,13]
[406787722,1772193050434,-800.0,0.00039329,13]
[406787723,1772193050443,-800.0,0.00039329,13]
[406787724,1772193050454,-800.0,0.00039329,13]
[406787725,1772193050463,-800.0,0.00039329,13]
[406787726,1772193050473,-800.0,0.00039329,13]
[406787727,1772193050482,-800.0,0.00039329,13]
[406787728,1772193050492,-800.0,0.00039329,13]
[406787729,1772193050502,-800.0,0.00039329,13]
[406787730,1772193050511,-800.0,0.00039329,13]
[406787731,1772193050525,-800.0,0.00039329,13]
[406787732,1772193050545,-800.0,0.00039329,13]
[406787733,1772193050564,-800.0,0.00039329,13]
[406787734,1772193050582,-800.0,0.00039329,13]
[406787735,1772193050601,-800.0,0.00039329,13]
[406787736,1772193050621,-800.0,0.00039329,13]
[406787737,1772193050640,-800.0,0.00039329,13]
[406787738,1772193050659,-800.0,0.00039329,13]
[406787739,1772193050679,-800.0,0.00039329,13]
[406787740,1772193050697,-350.0,0.00039361,6]
[406787741,1772193050719,-162.0,0.00039392,120]
[406787742,1772193050735,-16547.95,0.000394,120]
[406787743,1772193050755,-11749.96,0.000394,30]
[406787744,1772193050768,-424.80694,0.00039488,30]
[406787745,1772193050787,-1308.93,0.000396,14]
[406787746,1772193050802,-1126.427,0.00039647,55]
[406787747,1772193050818,-528.85,0.00039656,120]
[406787748,1772193050835,-528.85,0.00039656,120]
[406787749,1772193050856,-528.85,0.00039656,120]
[406787750,1772193050873,-528.85,0.00039656,120]
[406787751,1772193050889,-528.85,0.00039656,120]
[406787752,1772193050904,-528.85,0.00039656,120]
[406787753,1772193050921,-528.85,0.00039656,120]
[406787754,1772193050936,-528.85,0.00039656,120]
[406787755,1772193050951,-528.85,0.00039656,120]
[406787756,1772193050966,-500.0,0.00039656,120]
[406787757,1772193050982,-500.0,0.00039656,120]
[406787758,1772193050997,-500.0,0.00039656,120]
[406787759,1772193051014,-500.0,0.00039656,120]
[406787760,1772193051030,-500.0,0.00039656,120]
[406787761,1772193051044,-500.0,0.00039656,120]
[406787762,1772193051060,-500.0,0.00039656,120]
[406787763,1772193051075,-500.0,0.00039656,120]
[406787764,1772193051091,-500.0,0.00039656,120]
[406787765,1772193051106,-500.0,0.00039656,120]
[406787766,1772193051120,-500.0,0.00039656,120]
[406787767,1772193051136,-424.80694,0.00039688,30]
[406787768,1772193051150,-4963.8,0.000397,14]
[406787769,1772193051166,-218.0,0.0003975,2]
[406787770,1772193051182,-528.85,0.00039756,120]
[406787771,1772193051196,-528.85,0.00039756,120]
[406787772,1772193051211,-528.85,0.00039756,120]
[406787773,1772193051225,-528.85,0.00039756,120]
[406787774,1772193051240,-528.85,0.00039756,120]
[406787775,1772193051256,-528.85,0.00039756,120]
[406787776,1772193051274,-528.85,0.00039756,120]
[406787777,1772193051291,-529.0,0.00039756,120]
[406787778,1772193051306,-500.0,0.00039756,120]
[406787779,1772193051320,-500.0,0.00039756,120]
[406787780,1772193051334,-500.0,0.00039756,120]
[406787781,1772193051349,-500.0,0.00039756,120]
[406787782,1772193051363,-500.0,0.00039756,120]
[406787783,1772193051378,-500.0,0.00039756,120]
[406787784,1772193051392,-500.0,0.00039756,120]
[406787785,1772193051407,-313.34247632,0.00039756,120]
[406787786,1772193051426,-1000.0,0.0003977,2]
[406787787,1772193051441,-1000.0,0.0003977,2]
[406787788,1772193051456,-632.113379,0.0003977,2]
[406787789,1772193051471,-500.0,0.0003977,2]
[406787790,1772193051486,-6907.92,0.000398,14]
[406787791,1772193051503,-350.0,0.00039854,10]
[406787792,1772193051518,-5000.0,0.00039875,2]
[406787793,1772193051533,-1040.2,0.00039883,30]
[406787794,1772193051548,-424.80694,0.00039888,30]
[406787795,1772193051562,-1000.0,0.000399,120]
[406787796,1772193051577,-57702.30900296,0.00039999,2]
[406787797,1772193051592,-151.0,0.00039999,120]
[406787798,1772193051607,-151.0,0.00039999,120]
[406787799,1772193051624,-151.0,0.00039999,120]
[406787800,1772193051635,-151.0,0.00039999,120]
[406787801,1772193051644,-1000.58,0.0004,120]
[406787802,1772193051655,-3935.0,0.0004,30]
[406787803,1772193051664,-1000.0,0.0004,30]
[406787804,1772193051672,-13012.0,0.0004,120]
[406787805,1772193051682,-1000.0,0.0004,120]
[406787806,1772193051867,-2228.17767186,0.0004,120]
[406787807,1772193051887,-232.43799838,0.0004,120]
[406787808,1772193051902,-2225.72192341,0.0004,7]
[406787809,1772193051911,-170.64899109,0.0004,120]
[406787810,1772193051920,-496.53196946,0.0004,120]
[406787811,1772193051929,-1276.14794687,0.0004,14]
[406787812,1772193051940,-392.02779585,0.0004,2]
[406787813,1772193051949,-1566.50481207,0.0004,2]
[406787814,1772193051960,-4123.94271328,0.0004,2]
[406787815,1772193051969,-8036.726468,0.0004,120]
[406787816,1772193051978,-234.10711812,0.0004,120]
[406787817,1772193051987,-219.60375487,0.0004,2]
[406787818,1772193051996,-760.22722994,0.0004,2]
[406787819,1772193052005,-164.86976679,0.0004,120]
[406787820,1772193052015,-12900.02287852,0.0004,120]
[406787821,1772193052024,-277.79461607,0.0004,30]
[406787822,1772193052033,-355.70752278,0.0004,30]
[406787823,1772193052043,-1829.0,0.0004,120]
[406787824,1772193052052,-601.81452321,0.0004,2]
[406787825,1772193052061,-34226.5757402,0.0004,10]
[406787826,1772193052070,-315.90831792,0.0004,2]
[406787827,1772193052080,-162.21478329,0.0004,2]
[406787828,1772193052088,-10726.43449571,0.0004,2]
[406787829,1772193052098,-25705.87990451,0.0004,120]
[406787830,1772193052107,-518.17640426,0.0004,120]
[406787831,1772193052116,-1000.0,0.0004,120]
[406787832,1772193052125,-1000.0,0.0004,120]
[406787833,1772193052135,-50000.0,0.0004,120]
[406787834,1772193052144,-3000.0,0.0004,2]
[406787835,1772193052153,-5000.0,0.0004,14]
[406787836,1772193052161,-250.0,0.0004,7]
[406787837,1772193052171,-250.0,0.0004,7]
[406787838,1772193052180,-250.0,0.0004,7]
[406787839,1772193052189,-180.0,0.0004,7]
[406787840,1772193052199,-428.68305344,0.0004,7]
[406787841,1772193052208,-995.20287872,0.0004,7]
[406787842,1772193052217,-3000.0,0.0004,7]
[406787843,1772193052229,-10038.23633371,0.0004,120]
[406787844,1772193052238,-3600.15629349,0.0004,120]
[406787845,1772193052248,-3000.0,0.0004,3]
[406787846,1772193052257,-1000.0,0.0004,30]
[406787847,1772193052267,-154.0,0.0004,120]
[406787848,1772193052276,-151.0,0.0004,120]
[406787849,1772193052285,-811.32772971,0.0004,3]
[406787850,1772193052295,-600.0,0.0004,20]
[406787851,1772193052304,-221.072384,0.0004,120]
[406787852,1772193052313,-9000.0,0.0004,2]
[406787853,1772193052323,-530.07132271,0.0004,120]
[406787854,1772193052332,-160.0,0.0004,120]
[406787855,1772193052341,-1426.51,0.0004,120]
[406787856,1772193052350,-671.063363,0.0004,120]
[406787857,1772193052360,-329.954019,0.0004,120]
[406787858,1772193052369,-329.954019,0.0004,120]
[406787859,1772193052378,-329.954019,0.0004,120]
[406787860,1772193052388,-329.954019,0.0004,120]
[406787861,1772193052397,-671.063363,0.0004,120]
[406787862,1772193052406,-671.063363,0.0004,120]
[406787863,1772193052419,-671.063363,0.0004,120]
[406787864,1772193052429,-417.13,0.0004,120]
[406787865,1772193052439,-642.28,0.0004,120]
[406787866,1772193052448,-956.71,0.0004,120]
[406787867,1772193052459,-4038.48,0.0004,120]
[406787868,1772193052468,-150.69,0.0004,2]
[406787869,1772193052478,-150.69,0.0004,2]
[406787870,1772193052489,-150.69,0.0004,2]
[406787871,1772193052499,-150.69,0.0004,2]
[406787872,1772193052508,-150.69,0.0004,2]
[406787873,1772193052517,-150.69,0.0004,2]
[406787874,1772193052527,-150.69,0.0004,2]
[406787875,1772193052536,-150.69,0.0004,2]
[406787876,1772193052545,-150.69,0.0004,2]
[406787877,1772193052555,-150.69,0.0004,2]
[406787878,1772193052565,-150.69,0.0004,2]
[406787879,1772193052574,-150.69,0.0004,2]
[406787880,1772193052583,-150.69,0.0004,2]
[406787881,1772193052592,-150.69,0.0004,2]
[406787882,1772193052601,-150.69,0.0004,2]
[406787883,1772193052610,-150.69,0.0004,2]
[406787884,1772193052619,-150.69,0.0004,2]
[406787885,1772193052628,-150.69,0.0004,2]
[406787886,1772193052637,-150.69,0.0004,2]
[406787887,1772193052646,-150.69,0.0004,2]
[406787888,1772193052655,-150.69,0.0004,2]
[406787889,1772193052664,-150.69,0.0004,2]
[406787890,1772193052673,-150.69,0.0004,2]
[406787891,1772193052682,-150.69,0.0004,2]
[406787892,1772193052691,-150.69,0.0004,2]
[406787893,1772193052701,-150.69,0.0004,2]
[406787894,1772193052710,-150.69,0.0004,2]
[406787895,1772193052719,-150.69,0.0004,2]
[406787896,1772193052728,-150.69,0.0004,2]
[406787897,1772193052737,-150.69,0.0004,2]
[406787898,1772193052747,-150.69,0.0004,2]
[406787899,1772193052756,-150.69,0.0004,2]
[406787900,1772193052766,-150.69,0.0004,2]
[406787901,1772193052775,-150.69,0.0004,2]
[406787902,1772193052784,-150.69,0.0004,2]
[406787903,1772193052794,-150.69,0.0004,2]
[406787904,1772193052803,-150.69,0.0004,2]
[406787905,1772193052813,-150.69,0.0004,2]
[406787906,1772193052822,-150.69,0.0004,2]
[406787907,1772193052831,-150.69,0.0004,2]
[406787908,1772193052840,-150.69,0.0004,2]
[406787909,1772193052849,-150.69,0.0004,2]
[406787910,1772193052859,-150.69,0.0004,2]
[406787911,1772193052868,-150.69,0.0004,2]
[406787912,1772193052877,-150.69,0.0004,2]
[406787913,1772193052886,-150.69,0.0004,2]
[406787914,1772193052895,-150.69,0.0004,2]
[406787915,1772193052904,-500.0,0.00040032,120]
[406787916,1772193052913,-500.0,0.00040078,2]
[406787917,1772193052922,-500.0,0.00040078,2]
[406787918,1772193052931,-500.0,0.00040078,2]
[406787919,1772193052941,-500.0,0.00040078,2]
[406787920,1772193052950,-500.0,0.00040078,2]
[406787921,1772193052959,-500.0,0.00040078,2]
[406787922,1772193052968,-500.0,0.00040078,2]
[406787923,1772193052977,-500.0,0.00040078,2]
[406787924,1772193052987,-500.0,0.00040078,2]
[406787925,1772193052996,-500.0,0.00040078,2]
[406787926,1772193053005,-500.0,0.00040078,2]
[406787927,1772193053014,-500.0,0.00040078,2]
[406787928,1772193053024,-500.0,0.00040078,2]
[406787929,1772193053033,-500.0,0.00040078,2]
[406787930,1772193053042,-500.0,0.00040078,2]
[406787931,1772193053051,-500.0,0.00040078,2]
[406787932,1772193053060,-500.0,0.00040078,2]
[406787933,1772193053068,-500.0,0.00040078,2]
[406787934,1772193053077,-500.0,0.00040078,2]
[406787935,1772193053087,-500.0,0.00040078,2]
[406787936,1772193053096,-500.0,0.00040078,2]
[406787937,1772193053106,-500.0,0.00040078,2]
[406787938,1772193053115,-500.0,0.00040078,2]
[406787939,1772193053124,-500.0,0.00040078,2]
[406787940,1772193053133,-500.0,0.00040078,2]
[406787941,1772193053143,-500.0,0.00040078,2]
[406787942,1772193053152,-800.0,0.00040078,13]
[406787943,1772193053162,-800.0,0.00040078,13]
[406787944,1772193053171,-467.0,0.00040078,13]
[406787945,1772193053180,-500.0,0.00040078,2]
[406787946,1772193053189,-500.0,0.00040078,2]
[406787947,1772193053198,-500.0,0.00040078,2]
[406787948,1772193053207,-500.0,0.00040078,2]
[406787949,1772193053217,-500.0,0.00040078,2]
[406787950,1772193053226,-500.0,0.00040078,2]
[406787951,1772193053235,-500.0,0.00040078,2]
[406787952,1772193053244,-500.0,0.00040078,2]
[406787953,1772193053253,-500.0,0.00040078,2]
[406787954,1772193053262,-500.0,0.00040078,2]
[406787955,1772193053271,-500.0,0.00040078,2]
[406787956,1772193053280,-500.0,0.00040078,2]
[406787957,1772193053290,-500.0,0.00040078,2]
[406787958,1772193053299,-500.0,0.00040078,2]
[406787959,1772193053308,-500.0,0.00040078,2]
[406787960,1772193053317,-500.0,0.00040078,2]
[406787961,1772193053327,-500.0,0.00040078,2]
[406787962,1772193053336,-500.0,0.00040078,2]
[406787963,1772193053345,-500.0,0.00040078,2]
[406787964,1772193053354,-500.0,0.00040078,2]
[406787965,1772193053363,-500.0,0.00040078,2]
[406787966,1772193053372,-427.0,0.00040078,2]
[406787967,1772193053381,-800.0,0.00040078,13]
[406787968,1772193053390,-800.0,0.00040078,13]
[406787969,1772193053399,-800.0,0.00040078,13]
[406787970,1772193053408,-800.0,0.00040078,13]
[406787971,1772193053418,-800.0,0.00040078,13]
[406787972,1772193053430,-800.0,0.00040078,13]
[406787973,1772193053439,-800.0,0.00040078,13]
[406787974,1772193053448,-800.0,0.00040078,13]
[406787975,1772193053459,-800.0,0.00040078,13]
[406787976,1772193053467,-800.0,0.00040078,13]
[406787977,1772193053477,-800.0,0.00040078,13]
[406787978,1772193053485,-800.0,0.00040078,13]
[406787979,1772193053497,-800.0,0.00040078,13]
[406787980,1772193053506,-800.0,0.00040078,13]
[406787981,1772193053515,-800.0,0.00040078,13]
[406787982,1772193053525,-800.0,0.00040078,13]
[406787983,1772193053534,-800.0,0.00040078,13]
[406787984,1772193053543,-800.0,0.00040078,13]
[406787985,1772193053553,-800.0,0.00040078,13]
[406787986,1772193053562,-800.0,0.00040078,13]
[406787987,1772193053571,-800.0,0.00040078,13]
[406787988,1772193053580,-800.0,0.00040078,13]
[406787989,1772193053589,-800.0,0.00040078,13]
[406787990,1772193053598,-800.0,0.00040078,13]
[406787991,1772193053608,-800.0,0.00040078,13]
[406787992,1772193053617,-800.0,0.00040078,13]
[406787993,1772193053627,-800.0,0.00040078,13]
[406787994,1772193053636,-800.0,0.00040078,13]
[406787995,1772193053645,-800.0,0.00040078,13]
[406787996,1772193053655,-800.0,0.00040078,13]
[406787997,1772193053665,-800.0,0.00040078,13]
[406787998,1772193053675,-333.0,0.00040078,13]
[406787999,1772193053684,-800.0,0.00040078,13]
[406788000,1772193053693,-433.0,0.00040078,13]
[406788001,1772193053702,-424.80694,0.00040088,30]
[406788002,1772193053711,-2000.0,0.000401,2]
[406788003,1772193053720,-11749.96,0.000401,30]
[406788004,1772193053730,-150.0,0.00040165,2]
[406788005,1772193053739,-424.80694,0.00040288,30]
[406788006,1772193053748,-202937.88277989,0.00040426,2]
[406788007,1772193053765,-475.80353924,0.00040426,2]
[406788008,1772193053776,-1188.24102698,0.00040426,2]
[406788009,1772193053794,-176.639564,0.00039328,120]
[406788010,1772193053803,-960.25575097,0.00040426,2]
[406788011,1772193053815,-951.71587195,0.00040426,2]
[406788012,1772193053828,-500.0,0.00040426,2]
[406788013,1772193053919,-1818.85449953,0.00014014,2]
[406788014,1772193053934,-25459.87842266,0.00014014,2]
[406788015,1772193053944,-2456.0,0.00019259,2]
[406788016,1772193053953,-169.906,0.00022259,2]
[406788017,1772193053963,-695.0,0.00027195,10]
[406788018,1772193053972,-1120.0,0.00027195,10]
[406788019,1772193053981,-239.608818,0.00036174,31]
[406788020,1772193053990,-239.608818,0.00039328,120]
[406788021,1772193053999,-16910.46234897,0.00040426,2]
[406788022,1772193054009,-487.770219,0.00040426,120]
[406788023,1772193054019,-487.770219,0.00040426,120]
[406788024,1772193054028,-487.770219,0.00040426,120]